fUSD/lending_fUSD_20250923
["ID","MTS","AMOUNT","RATE_DAILY","PERIOD"]
[387213099,1758652239027,-150.0,0.00022044,4]
[387213100,1758652239039,-150.0,0.00022044,4]
[387213101,1758652239048,-150.0,0.00022044,4]
[387213102,1758652239058,-150.0,0.00022044,4]
[387213103,1758652239068,-150.0,0.00022044,4]
[387213104,1758652239078,-150.0,0.00022044,4]
[387213105,1758652239089,-150.00000001,0.00022044,4]
[387213106,1758652239101,-151.9784924,0.00022044,4]
[387213107,1758652239111,-150.0,0.00022044,4]
[387213108,1758652239121,-153.10101638,0.00022044,4]
[387213109,1758652239131,-150.0,0.00022044,4]
[387213110,1758652239140,-150.0,0.00022044,4]
[387213111,1758652239149,-150.0,0.00022044,4]
[387213112,1758652239159,-248.0,0.00022192,7]
[387213113,1758652239169,-177.52326848,0.00022335,2]
[387213114,1758652239178,-455.0,0.0002235,2]
[387213115,1758652239188,-864.34712059,0.00022384,2]
[387213116,1758652239198,-636.5,0.00022453,2]
[387213117,1758652239209,-805.56,0.00022466,2]
[387213118,1758652239219,-5000.0,0.00022533,2]
[387213119,1758652239228,-176.0,0.0002256,2]
[387213120,1758652239238,-150.0,0.0002259,2]
[387213121,1758652239247,-345.03344652,0.00022686,2]
[387213122,1758652239257,-892.84888979,0.00022718,2]
[387213123,1758652239266,-1020.07,0.00022722,2]
[387213124,1758652239276,-1663.53075978,0.00022859,2]
[387213125,1758652239286,-272.2389,0.00022861,2]
[387213127,1758652239295,-150.0,0.00022873,2]
[387213128,1758652239304,-1004.0,0.00022903,2]
[387213129,1758652239313,-492.77966661,0.00022909,2]
[387213130,1758652239322,-177.52326848,0.00022944,2]
[387213131,1758652239332,-1560.23,0.00023,2]
[387213132,1758652239341,-1000.0,0.00023,2]
[387213134,1758652239350,-236.56,0.00023,2]
[387213135,1758652239360,-1085.48,0.00023,2]
[387213136,1758652239369,-248.0,0.00023014,7]
[387213137,1758652239380,-35267.57,0.000231,7]
[387213138,1758652239393,-516.64379166,0.000231,7]
[387213139,1758652239402,-197.68,0.00023115,2]
[387213140,1758652239412,-150.0,0.00023268,4]
[387213141,1758652239430,-176.0,0.00023347,2]
[387213142,1758652239440,-200.0,0.00023367,2]
[387213143,1758652239450,-1031.12607068,0.00023386,2]
[387213144,1758652239459,-444.0,0.00023415,2]
[387213145,1758652239469,-892.84888979,0.00023422,2]
[387213146,1758652239478,-1012.0,0.000235,2]
[387213147,1758652239488,-445.0,0.0002353,2]
[387213148,1758652239497,-444.0,0.00023545,2]
[387213149,1758652239506,-177.52326848,0.00023553,2]
[387213150,1758652239515,-150.0,0.00023562,2]
[387213151,1758652239524,-1087.23,0.00023562,2]
[387213152,1758652239534,-411.74,0.00023562,2]
[387213153,1758652239544,-444.0,0.00023633,2]
[387213154,1758652239554,-500.0,0.00023644,2]
[387213155,1758652239563,-172.94,0.00023688,2]
[387213156,1758652239573,-444.0,0.0002372,2]
[387213157,1758652239583,-2662.167544,0.0002378,2]
[387213158,1758652239593,-1000.0,0.0002378,2]
[387213159,1758652239603,-2500.0,0.0002378,2]
[387213160,1758652239613,-247.22582798,0.0002378,2]
[387213161,1758652239623,-1100.0,0.000238,8]
[387213162,1758652239632,-444.0,0.00023808,2]
[387213163,1758652239642,-2351.0,0.00023826,2]
[387213164,1758652239651,-1663.53075978,0.00023845,2]
[387213165,1758652239660,-180.69552882,0.00023868,2]
[387213166,1758652239670,-1000.0,0.00023879,2]
[387213167,1758652239679,-274984.3445027,0.0002388,2]
[387213168,1758652239693,-106493.10899121,0.0002388,2]
[387213169,1758652239703,-2500.0,0.0002388,7]
[387213170,1758652239713,-500.0,0.0002388,5]
[387213171,1758652239724,-2662.16754397,0.00023897,2]
[387213172,1758652239734,-1500.0,0.000239,8]
[387213173,1758652239744,-5000.00932368,0.00024,5]
[387213174,1758652239753,-4000.0,0.00024,4]
[387213175,1758652239763,-2662.16754397,0.00024014,2]
[387213176,1758652239773,-882.76831988,0.00024099,2]
[387213177,1758652239782,-35267.57,0.000241,7]
[387213178,1758652239791,-516.64379166,0.000241,7]
[387213179,1758652239801,-1011.7270749,0.0002411,2]
[387213180,1758652239811,-150.0,0.0002411,2]
[387213181,1758652239821,-150.0,0.0002411,2]
[387213182,1758652239831,-150.0,0.0002411,2]
[387213183,1758652239841,-150.0,0.0002411,2]
[387213184,1758652239850,-150.0,0.0002411,2]
[387213185,1758652239859,-150.0,0.0002411,2]
[387213186,1758652239869,-150.0,0.0002411,2]
[387213187,1758652239879,-500.0,0.0002411,2]
[387213188,1758652239890,-842.3882,0.0002411,2]
[387213189,1758652239899,-500.0,0.0002411,2]
[387213190,1758652239909,-150.0,0.0002411,2]
[387213191,1758652239918,-500.0,0.0002411,2]
[387213192,1758652239927,-150.0,0.0002411,2]
[387213193,1758652239937,-150.0,0.0002411,2]
[387213194,1758652239947,-152.26027051,0.0002411,2]
[387213195,1758652239957,-150.0,0.0002411,2]
[387213196,1758652239966,-500.0,0.0002411,2]
[387213197,1758652239976,-1192.0,0.0002411,2]
[387213198,1758652239986,-150.0,0.0002411,2]
[387213199,1758652239997,-150.0,0.0002411,2]
[387213200,1758652240006,-500.0,0.0002411,2]
[387213201,1758652240016,-150.0,0.0002411,2]
[387213202,1758652240033,-150.0,0.0002411,2]
[387213203,1758652240052,-500.0,0.0002411,2]
[387213204,1758652240067,-500.0,0.0002411,2]
[387213205,1758652240086,-500.0,0.0002411,2]
[387213206,1758652240110,-500.0,0.0002411,2]
[387213207,1758652240124,-150.0,0.0002411,2]
[387213208,1758652240147,-150.0,0.0002411,2]
[387213209,1758652240165,-150.0,0.0002411,2]
[387213210,1758652240186,-892.84888979,0.00024127,2]
[387213211,1758652240204,-2662.16754397,0.0002413,2]
[387213212,1758652240222,-176.0,0.00024134,2]
[387213213,1758652240238,-500.0,0.00024154,5]
[387213214,1758652240256,-205288.4745286,0.00024157,2]
[387213215,1758652240273,-18183.796789,0.00024157,2]
[387213216,1758652240406,-453.38,0.00024157,2]
[387213217,1758652240424,-691.88200397,0.00024157,2]
[387213218,1758652240441,-1015.344,0.00024157,2]
[387213219,1758652240458,-1355.75998195,0.00024157,2]
[387213253,1758652241549,-2297.65503448,0.00024157,2]
[387213258,1758652241579,-4408.41697997,0.00024157,2]
[387213277,1758652241752,-10569.84579287,0.00024157,2]
[387213280,1758652241769,-253.68865801,0.00024157,2]
[387213282,1758652241786,-2246.0,0.00024157,2]
[387213295,1758652241901,-524.9326699,0.00024157,2]
[387213299,1758652241919,-250.29304959,0.00024157,2]
[387213304,1758652241962,-1663.9492205,0.00024157,2]
[387213310,1758652242009,-534717.15539013,0.00024157,2]
[387213313,1758652242022,-177.52326848,0.00024161,2]
[387213315,1758652242037,-251.0,0.00024164,7]
[387213318,1758652242052,-152.0,0.00024175,4]
[387213320,1758652242066,-150.0,0.00024203,5]
[387213323,1758652242079,-202.92628102,0.00024203,5]
[387213325,1758652242094,-150.0,0.00024203,5]
[387213328,1758652242111,-150.0,0.00024203,5]
[387213330,1758652242124,-150.0,0.00024203,5]
[387213333,1758652242141,-197.68,0.00024215,2]
[387213335,1758652242154,-444.0,0.00024216,2]
[387213337,1758652242168,-213.02875482,0.00024222,2]
[387213340,1758652242185,-2662.16754397,0.00024247,2]
[387213342,1758652242199,-169.94,0.00024333,2]
[387213345,1758652242213,-168.0,0.00024339,2]
[387213347,1758652242223,-111229.0323,0.00024357,2]
[387213349,1758652242232,-1000.0,0.00024357,2]
[387213351,1758652242242,-500.0,0.00024357,5]
[387213353,1758652242251,-26061.5561,0.00024357,2]
[387213355,1758652242260,-5000.0,0.00024357,2]
[387213357,1758652242269,-581.14412436,0.00024357,2]
[387213359,1758652242279,-161.33689711,0.00024357,2]
[387213361,1758652242288,-1162.58164822,0.00024363,2]
[387213363,1758652242298,-2662.16754397,0.00024364,2]
[387213365,1758652242307,-3384.06,0.00024378,2]
[387213368,1758652242317,-5000.0,0.0002438,2]
[387213370,1758652242327,-5000.0,0.00024382,3]
[387213372,1758652242336,-411.06,0.00024384,2]
[387213375,1758652242345,-171.09,0.00024384,2]
[387213378,1758652242355,-150.19,0.00024384,2]
[387213381,1758652242365,-150.94,0.00024384,2]
[387213384,1758652242377,-300.0,0.00024384,2]
[387213386,1758652242388,-150.0,0.00024384,2]
[387213388,1758652242398,-150.0,0.00024384,2]
[387213390,1758652242407,-150.0,0.00024384,2]
[387213392,1758652242417,-150.0,0.00024384,2]
[387213461,1758652242925,-150.0,0.00024384,2]
[387213466,1758652242959,-500.0,0.00024384,2]
[387213469,1758652242984,-500.0,0.00024384,2]
[387213471,1758652242993,-150.0,0.00024384,2]
[387213473,1758652243002,-500.0,0.00024384,2]
[387213474,1758652243012,-150.0,0.00024384,2]
[387213476,1758652243021,-150.0,0.00024384,2]
[387213478,1758652243030,-250.0,0.00024384,2]
[387213480,1758652243040,-500.0,0.00024384,2]
[387213482,1758652243050,-1192.0,0.00024384,2]
[387213484,1758652243059,-150.0,0.00024384,2]
[387213486,1758652243068,-150.0,0.00024384,2]
[387213488,1758652243077,-500.0,0.00024384,2]
[387213490,1758652243086,-150.0,0.00024384,2]
[387213491,1758652243096,-500.0,0.00024384,2]
[387213493,1758652243109,-500.0,0.00024384,2]
[387213495,1758652243119,-500.0,0.00024384,2]
[387213497,1758652243128,-500.0,0.00024384,2]
[387213499,1758652243138,-150.0,0.00024384,2]
[387213501,1758652243148,-5000.0,0.00024384,3]
[387213503,1758652243157,-5000.0,0.00024386,3]
[387213505,1758652243167,-20000.0,0.00024396,2]
[387213507,1758652243176,-168.0,0.00024399,2]
[387213509,1758652243186,-168.0,0.00024399,2]
[387213511,1758652243197,-4914.76326101,0.000244,2]
[387213513,1758652243206,-231.37,0.00024409,2]
[387213515,1758652243216,-500.0,0.00024428,5]
[387213517,1758652243225,-5262.83,0.00024456,2]
[387213519,1758652243234,-1375.51489432,0.00024456,2]
[387213522,1758652243244,-150.0,0.00024463,2]
[387213523,1758652243253,-500.0,0.00024473,2]
[387213527,1758652243264,-500.0,0.00024473,2]
[387213529,1758652243273,-500.0,0.00024473,2]
[387213531,1758652243282,-500.0,0.00024473,2]
[387213533,1758652243291,-314.33835875,0.00024473,2]
[387213534,1758652243300,-500.0,0.00024473,2]
[387213536,1758652243309,-500.0,0.00024473,2]
[387213538,1758652243318,-500.0,0.00024473,2]
[387213540,1758652243327,-500.0,0.00024473,2]
[387213543,1758652243337,-500.91690876,0.00024473,2]
[387213545,1758652243346,-259.79374997,0.00024473,2]
[387213548,1758652243355,-500.18755511,0.00024473,2]
[387213551,1758652243365,-500.0,0.00024473,2]
[387213553,1758652243375,-454.45342863,0.00024473,2]
[387213555,1758652243385,-156.89714162,0.00024473,2]
[387213557,1758652243395,-500.0,0.00024473,2]
[387213559,1758652243405,-500.0,0.00024473,2]
[387213561,1758652243414,-500.0,0.00024473,2]
[387213563,1758652243424,-168.58812346,0.00024473,2]
[387213566,1758652243434,-500.0,0.00024473,2]
[387213568,1758652243443,-526.78976476,0.00024473,2]
[387213570,1758652243453,-339.12772927,0.00024473,2]
[387213571,1758652243462,-500.595319,0.00024473,2]
[387213572,1758652243471,-500.0,0.00024473,2]
[387213573,1758652243480,-500.18802203,0.00024473,2]
[387213574,1758652243489,-236.56,0.00024473,2]
[387213575,1758652243498,-1085.48,0.00024473,2]
[387213576,1758652243507,-150.0,0.00024477,5]
[387213577,1758652243516,-2662.16754397,0.00024481,2]
[387213578,1758652243525,-5000.0,0.0002449,29]
[387213579,1758652243534,-5000.0,0.0002449,25]
[387213580,1758652243545,-164.30264131,0.00024493,4]
[387213582,1758652243554,-295.5864989,0.00024493,4]
[387213583,1758652243563,-150.0,0.00024493,4]
[387213585,1758652243573,-272.57810676,0.00024493,4]
[387213587,1758652243584,-150.0,0.00024493,4]
[387213589,1758652243593,-150.0,0.00024493,4]
[387213592,1758652243604,-299.02803283,0.00024493,4]
[387213593,1758652243615,-156.89004855,0.00024493,4]
[387213595,1758652243625,-248.48991014,0.00024493,4]
[387213598,1758652243638,-150.0,0.00024493,4]
[387213599,1758652243647,-150.0,0.00024493,4]
[387213601,1758652243656,-262.595,0.00024494,2]
[387213603,1758652243666,-734908.47172466,0.00024495,2]
[387213605,1758652243675,-513.0989689,0.00024495,14]
[387213607,1758652243685,-444.0,0.00024503,2]
[387213609,1758652243694,-10000.0,0.00024557,2]
[387213612,1758652243704,-444.0,0.0002457,2]
[387213614,1758652243714,-444.0,0.00024575,2]
[387213616,1758652243723,-2662.16754397,0.00024597,2]
[387213618,1758652243733,-168.0,0.00024618,2]
[387213620,1758652243742,-1000.0,0.00024656,2]
[387213622,1758652243752,-516.64379166,0.00024657,3]
[387213624,1758652243762,-400.0,0.00024657,3]
[387213626,1758652243772,-400.0,0.00024657,3]
[387213628,1758652243782,-797.78,0.00024657,3]
[387213630,1758652243792,-400.0,0.00024657,3]
[387213632,1758652243802,-400.0,0.00024657,3]
[387213634,1758652243811,-400.0,0.00024657,3]
[387213636,1758652243821,-400.0,0.00024657,3]
[387213638,1758652243831,-524.55,0.00024657,3]
[387213640,1758652243840,-400.0,0.00024657,3]
[387213642,1758652243849,-400.0,0.00024657,3]
[387213644,1758652243859,-400.0,0.00024657,3]
[387213646,1758652243868,-400.0,0.00024657,3]
[387213648,1758652243877,-400.0,0.00024657,3]
[387213650,1758652243888,-400.0,0.00024657,3]
[387213652,1758652243897,-501.83241758,0.00024657,3]
[387213654,1758652243907,-401.51639,0.00024657,3]
[387213656,1758652243917,-400.0,0.00024657,3]
[387213658,1758652243926,-407.85,0.00024657,3]
[387213660,1758652243935,-718.98,0.00024657,3]
[387213662,1758652243944,-400.0,0.00024657,3]
[387213664,1758652243954,-400.0,0.00024657,3]
[387213666,1758652243962,-400.0,0.00024657,3]
[387213668,1758652243972,-400.0,0.00024657,3]
[387213670,1758652243981,-400.0,0.00024657,3]
[387213672,1758652243991,-400.0,0.00024657,3]
[387213674,1758652244000,-400.0,0.00024657,3]
[387213675,1758652244010,-500.0,0.00024657,2]
[387213677,1758652244019,-400.0,0.00024657,3]
[387213679,1758652244029,-513.13,0.00024657,3]
[387213681,1758652244038,-400.0,0.00024657,3]
[387213683,1758652244047,-400.0,0.00024657,3]
[387213685,1758652244057,-931.93,0.00024657,3]
[387213687,1758652244066,-400.0,0.00024657,3]
[387213689,1758652244075,-400.0,0.00024657,3]
[387213691,1758652244085,-400.0,0.00024657,3]
[387213693,1758652244094,-197.56831092,0.00024657,3]
[387213696,1758652244107,-400.0,0.00024657,3]
[387213697,1758652244116,-400.0,0.00024657,3]
[387213699,1758652244125,-400.0,0.00024657,3]
[387213701,1758652244135,-400.0,0.00024657,3]
[387213703,1758652244145,-400.0,0.00024657,3]
[387213705,1758652244154,-400.0,0.00024657,3]
[387213707,1758652244163,-400.0,0.00024657,3]
[387213709,1758652244172,-400.0,0.00024657,3]
[387213711,1758652244181,-400.0,0.00024657,3]
[387213713,1758652244191,-400.0,0.00024657,3]
[387213715,1758652244199,-400.0,0.00024657,3]
[387213717,1758652244209,-520.13,0.00024657,3]
[387213719,1758652244218,-400.0,0.00024657,3]
[387213721,1758652244227,-400.0,0.00024657,3]
[387213723,1758652244236,-772.94,0.00024657,3]
[387213725,1758652244245,-908.3,0.00024657,3]
[387213726,1758652244254,-402.71,0.00024657,3]
[387213728,1758652244264,-210.24229015,0.00024657,3]
[387213730,1758652244273,-425.25,0.00024657,3]
[387213732,1758652244282,-400.0,0.00024657,3]
[387213734,1758652244292,-400.0,0.00024657,3]
[387213736,1758652244301,-400.0,0.00024657,3]
[387213738,1758652244310,-400.0,0.00024657,3]
[387213740,1758652244320,-400.0,0.00024657,3]
[387213742,1758652244329,-454.27,0.00024657,3]
[387213744,1758652244339,-400.0,0.00024657,3]
[387213746,1758652244348,-400.0,0.00024657,3]
[387213748,1758652244357,-400.0,0.00024657,3]
[387213750,1758652244367,-400.0,0.00024657,3]
[387213752,1758652244376,-400.0,0.00024657,3]
[387213755,1758652244388,-400.0,0.00024657,3]
[387213756,1758652244398,-400.0,0.00024657,3]
[387213758,1758652244407,-414.88,0.00024657,3]
[387213759,1758652244417,-400.0,0.00024657,3]
[387213760,1758652244427,-400.0,0.00024657,3]
[387213761,1758652244436,-400.0,0.00024657,3]
[387213762,1758652244446,-648.33,0.00024657,3]
[387213763,1758652244455,-400.0,0.00024657,3]
[387213764,1758652244465,-698.83,0.00024657,3]
[387213765,1758652244475,-400.0,0.00024657,3]
[387213766,1758652244484,-400.0,0.00024657,3]
[387213767,1758652244493,-400.0,0.00024657,3]
[387213768,1758652244503,-400.0,0.00024657,3]
[387213769,1758652244513,-400.0,0.00024657,3]
[387213770,1758652244522,-400.0,0.00024657,3]
[387213771,1758652244532,-400.0,0.00024657,3]
[387213772,1758652244541,-400.0,0.00024657,3]
[387213773,1758652244551,-400.0,0.00024657,3]
[387213774,1758652244560,-576.19,0.00024657,3]
[387213775,1758652244570,-400.0,0.00024657,3]
[387213776,1758652244579,-400.0,0.00024657,3]
[387213777,1758652244589,-400.0,0.00024657,3]
[387213778,1758652244598,-688.73,0.00024657,3]
[387213779,1758652244607,-400.0,0.00024657,3]
[387213780,1758652244617,-400.0,0.00024657,3]
[387213782,1758652244627,-535.63,0.00024657,3]
[387213784,1758652244637,-400.0,0.00024657,3]
[387213786,1758652244647,-400.0,0.00024657,3]
[387213788,1758652244656,-400.0,0.00024657,3]
[387213790,1758652244666,-400.0,0.00024657,3]
[387213792,1758652244675,-400.0,0.00024657,3]
[387213794,1758652244684,-400.0,0.00024657,3]
[387213796,1758652244694,-400.0,0.00024657,3]
[387213798,1758652244704,-400.0,0.00024657,3]
[387213800,1758652244713,-400.0,0.00024657,3]
[387213802,1758652244722,-400.0,0.00024657,3]
[387213804,1758652244732,-400.0,0.00024657,3]
[387213806,1758652244741,-400.0,0.00024657,3]
[387213808,1758652244750,-400.0,0.00024657,3]
[387213809,1758652244760,-400.0,0.00024657,3]
[387213811,1758652244769,-400.0,0.00024657,3]
[387213813,1758652244779,-400.0,0.00024657,3]
[387213815,1758652244789,-413.6621396,0.00024657,3]
[387213817,1758652244799,-417.91020931,0.00024657,3]
[387213819,1758652244808,-400.0,0.00024657,3]
[387213821,1758652244818,-400.0,0.00024657,3]
[387213823,1758652244828,-400.0,0.00024657,3]
[387213825,1758652244837,-400.0,0.00024657,3]
[387213827,1758652244847,-917.64,0.00024657,3]
[387213829,1758652244856,-400.0,0.00024657,3]
[387213831,1758652244866,-226.8826824,0.00024657,3]
[387213833,1758652244875,-409.81830776,0.00024657,3]
[387213835,1758652244885,-400.0,0.00024657,3]
[387213838,1758652244895,-400.0,0.00024657,3]
[387213840,1758652244907,-400.0,0.00024657,3]
[387213842,1758652244916,-400.0,0.00024657,3]
[387213844,1758652244927,-400.0,0.00024657,3]
[387213846,1758652244937,-400.0,0.00024657,3]
[387213848,1758652244947,-400.0,0.00024657,3]
[387213850,1758652244956,-404.89199827,0.00024657,3]
[387213852,1758652244965,-400.0,0.00024657,3]
[387213854,1758652244975,-400.0,0.00024657,3]
[387213856,1758652244984,-400.0,0.00024657,3]
[387213858,1758652244993,-400.0,0.00024657,3]
[387213860,1758652245002,-400.0,0.00024657,3]
[387213862,1758652245012,-400.0,0.00024657,3]
[387213864,1758652245021,-400.0,0.00024657,3]
[387213866,1758652245030,-400.0,0.00024657,3]
[387213868,1758652245040,-400.0,0.00024657,3]
[387213870,1758652245049,-400.0,0.00024657,3]
[387213871,1758652245058,-400.0,0.00024657,3]
[387213873,1758652245068,-400.0,0.00024657,3]
[387213875,1758652245077,-400.0,0.00024657,3]
[387213877,1758652245087,-400.0,0.00024657,3]
[387213879,1758652245098,-731.03,0.00024657,3]
[387213882,1758652245111,-400.0,0.00024657,3]
[387213884,1758652245122,-431.5276365,0.00024657,3]
[387213886,1758652245131,-400.0,0.00024657,3]
[387213887,1758652245143,-400.0,0.00024657,3]
[387213888,1758652245152,-400.0,0.00024657,3]
[387213889,1758652245162,-400.0,0.00024657,3]
[387213890,1758652245171,-400.0,0.00024657,3]
[387213891,1758652245185,-400.0,0.00024657,3]
[387213892,1758652245194,-400.0,0.00024657,3]
[387213893,1758652245204,-400.0,0.00024657,3]
[387213894,1758652245213,-400.0,0.00024657,3]
[387213895,1758652245223,-400.0,0.00024657,3]
[387213896,1758652245233,-400.0,0.00024657,3]
[387213897,1758652245244,-422.48,0.00024657,3]
[387213898,1758652245253,-400.0,0.00024657,3]
[387213899,1758652245263,-400.0,0.00024657,3]
[387213900,1758652245273,-400.0,0.00024657,3]
[387213901,1758652245282,-400.0,0.00024657,3]
[387213902,1758652245292,-406.74935894,0.00024657,3]
[387213903,1758652245302,-400.0,0.00024657,3]
[387213904,1758652245311,-400.0,0.00024657,3]
[387213905,1758652245321,-446.81991503,0.00024657,3]
[387213906,1758652245331,-152.59554882,0.00024657,3]
[387213907,1758652245340,-400.0,0.00024657,3]
[387213908,1758652245351,-400.0,0.00024657,3]
[387213909,1758652245362,-496.86,0.00024657,3]
[387213910,1758652245373,-400.0,0.00024657,3]
[387213911,1758652245383,-400.0,0.00024657,3]
[387213912,1758652245392,-784.54,0.00024657,3]
[387213913,1758652245402,-400.0,0.00024657,3]
[387213914,1758652245411,-400.0,0.00024657,3]
[387213915,1758652245421,-400.0,0.00024657,3]
[387213916,1758652245431,-400.0,0.00024657,3]
[387213917,1758652245442,-400.9118099,0.00024657,3]
[387213918,1758652245454,-400.0,0.00024657,3]
[387213919,1758652245464,-255.46716271,0.00024657,3]
[387213920,1758652245473,-400.0,0.00024657,3]
[387213921,1758652245483,-400.0,0.00024657,3]
[387213922,1758652245492,-400.0,0.00024657,3]
[387213923,1758652245502,-400.0,0.00024657,3]
[387213924,1758652245511,-400.0,0.00024657,3]
[387213925,1758652245521,-279.86102626,0.00024657,3]
[387213926,1758652245531,-500.0,0.00024657,3]
[387213927,1758652245541,-500.0,0.00024657,3]
[387213928,1758652245551,-500.0,0.00024657,3]
[387213929,1758652245561,-217.99435279,0.00024657,3]
[387213930,1758652245571,-400.0,0.00024657,3]
[387213931,1758652245581,-400.0,0.00024657,3]
[387213932,1758652245590,-400.0,0.00024657,3]
[387213933,1758652245600,-400.0,0.00024657,3]
[387213934,1758652245609,-400.0,0.00024657,3]
[387213935,1758652245619,-400.0,0.00024657,3]
[387213936,1758652245628,-400.0,0.00024657,3]
[387213937,1758652245639,-400.0,0.00024657,3]
[387213938,1758652245650,-400.0,0.00024657,3]
[387213939,1758652245659,-400.0,0.00024657,3]
[387213940,1758652245668,-400.0,0.00024657,3]
[387213941,1758652245678,-375.94382914,0.00024657,3]
[387213942,1758652245687,-400.0,0.00024657,3]
[387213943,1758652245697,-400.0,0.00024657,3]
[387213944,1758652245706,-400.0,0.00024657,3]
[387213945,1758652245715,-400.0,0.00024657,3]
[387213946,1758652245725,-400.0,0.00024657,3]
[387213947,1758652245734,-401.22910259,0.00024657,3]
[387213948,1758652245744,-400.0,0.00024657,3]
[387213949,1758652245754,-400.0,0.00024657,3]
[387213950,1758652245763,-400.0,0.00024657,3]
[387213951,1758652245773,-510.73307401,0.00024657,3]
[387213952,1758652245782,-400.0,0.00024657,3]
[387213953,1758652245792,-400.0,0.00024657,3]
[387213954,1758652245801,-400.0,0.00024657,3]
[387213955,1758652245810,-400.0,0.00024657,3]
[387213956,1758652245819,-400.0,0.00024657,3]
[387213957,1758652245829,-400.0,0.00024657,3]
[387213958,1758652245839,-400.0,0.00024657,3]
[387213959,1758652245848,-400.0,0.00024657,3]
[387213960,1758652245858,-400.0,0.00024657,3]
[387213961,1758652245867,-400.0,0.00024657,3]
[387213962,1758652245877,-961.43,0.00024657,3]
[387213963,1758652245887,-961.43,0.00024657,3]
[387213964,1758652245896,-961.43,0.00024657,3]
[387213965,1758652245905,-961.43,0.00024657,3]
[387213966,1758652245915,-961.43,0.00024657,3]
[387213967,1758652245925,-961.43,0.00024657,3]
[387213968,1758652245934,-961.43,0.00024657,3]
[387213969,1758652245943,-961.43,0.00024657,3]
[387213970,1758652245953,-961.43,0.00024657,3]
[387213971,1758652245963,-961.43,0.00024657,3]
[387213972,1758652245973,-961.43,0.00024657,3]
[387213973,1758652245982,-961.43,0.00024657,3]
[387213974,1758652245991,-961.43,0.00024657,3]
[387213975,1758652246000,-961.43,0.00024657,3]
[387213976,1758652246010,-161.34756593,0.00024657,3]
[387213977,1758652246021,-961.43,0.00024657,3]
[387213979,1758652246030,-961.43,0.00024657,3]
[387213981,1758652246039,-499.87,0.00024657,3]
[387213983,1758652246050,-961.43,0.00024657,3]
[387213985,1758652246059,-961.43,0.00024657,3]
[387213987,1758652246069,-400.0,0.00024657,3]
[387213989,1758652246078,-400.0,0.00024657,3]
[387213991,1758652246088,-400.0,0.00024657,3]
[387213993,1758652246099,-400.0,0.00024657,3]
[387213995,1758652246111,-400.0,0.00024657,3]
[387213997,1758652246120,-400.0,0.00024657,3]
[387213999,1758652246129,-400.0,0.00024657,3]
[387214001,1758652246139,-400.0,0.00024657,3]
[387214003,1758652246149,-546.42,0.00024657,3]
[387214005,1758652246158,-500.0,0.00024657,3]
[387214007,1758652246167,-500.0,0.00024657,3]
[387214009,1758652246177,-500.0,0.00024657,3]
[387214011,1758652246186,-500.0,0.00024657,3]
[387214013,1758652246195,-500.0,0.00024657,3]
[387214015,1758652246205,-500.0,0.00024657,3]